fUST/lending_fUST_20250913
["ID","MTS","AMOUNT","RATE_DAILY","PERIOD"]
[385291837,1757751049203,-611.82,0.00024657,3]
[385291838,1757751049213,-480.0,0.00024657,3]
[385291839,1757751049222,-151.0,0.00024657,7]
[385291840,1757751049232,-480.0,0.00024657,3]
[385291841,1757751049241,-480.0,0.00024657,3]
[385291842,1757751049251,-480.0,0.00024657,3]
[385291843,1757751049262,-480.0,0.00024657,3]
[385291844,1757751049271,-151.0,0.00024657,7]
[385291845,1757751049280,-151.0,0.00024657,7]
[385291846,1757751049290,-151.0,0.00024657,7]
[385291847,1757751049300,-480.0,0.00024657,3]
[385291848,1757751049309,-151.0,0.00024657,7]
[385291849,1757751049318,-480.0,0.00024657,3]
[385291850,1757751049327,-480.0,0.00024657,3]
[385291851,1757751049336,-151.0,0.00024657,7]
[385291852,1757751049345,-151.0,0.00024657,7]
[385291853,1757751049355,-480.0,0.00024657,3]
[385291854,1757751049364,-151.0,0.00024657,7]
[385291855,1757751049374,-151.0,0.00024657,7]
[385291856,1757751049383,-151.0,0.00024657,7]
[385291857,1757751049393,-418.88832291,0.00024657,3]
[385291858,1757751049402,-480.0,0.00024657,3]
[385291859,1757751049411,-1127.81,0.00024657,3]
[385291860,1757751049421,-1782.97,0.00024657,3]
[385291861,1757751049430,-1694.48,0.00024657,3]
[385291862,1757751049440,-480.0,0.00024657,3]
[385291863,1757751049450,-494.28499477,0.00024657,3]
[385291864,1757751049459,-674.16,0.00024657,3]
[385291865,1757751049468,-480.0,0.00024657,3]
[385291866,1757751049478,-480.0,0.00024657,3]
[385291867,1757751049487,-480.0,0.00024657,3]
[385291868,1757751049496,-151.0,0.00024657,7]
[385291869,1757751049506,-169.747868,0.00024657,7]
[385291870,1757751049515,-169.747868,0.00024657,7]
[385291871,1757751049525,-169.747868,0.00024657,7]
[385291872,1757751049535,-169.747868,0.00024657,7]
[385291873,1757751049545,-169.747868,0.00024657,7]
[385291874,1757751049555,-480.0,0.00024657,3]
[385291875,1757751049564,-169.747868,0.00024657,7]
[385291876,1757751049574,-480.0,0.00024657,2]
[385291877,1757751049584,-169.747868,0.00024657,7]
[385291878,1757751049594,-169.747868,0.00024657,7]
[385291879,1757751049603,-480.0,0.00024657,3]
[385291880,1757751049612,-169.747868,0.00024657,7]
[385291881,1757751049622,-480.0,0.00024657,3]
[385291882,1757751049631,-169.747868,0.00024657,7]
[385291883,1757751049640,-169.747868,0.00024657,7]
[385291884,1757751049650,-480.0,0.00024657,3]
[385291885,1757751049659,-169.747868,0.00024657,7]
[385291886,1757751049669,-480.0,0.00024657,3]
[385291887,1757751049678,-169.747868,0.00024657,7]
[385291888,1757751049688,-169.747868,0.00024657,7]
[385291889,1757751049698,-169.747868,0.00024657,7]
[385291890,1757751049707,-480.0,0.00024657,3]
[385291891,1757751049717,-169.747868,0.00024657,7]
[385291892,1757751049727,-169.747868,0.00024657,7]
[385291893,1757751049736,-169.747868,0.00024657,7]
[385291894,1757751049849,-953.06,0.00024657,3]
[385291895,1757751049858,-169.747868,0.00024657,7]
[385291896,1757751049868,-169.747876,0.00024657,7]
[385291897,1757751049877,-480.0,0.00024657,3]
[385291898,1757751049886,-551.65,0.00024657,3]
[385291899,1757751049896,-480.0,0.00024657,3]
[385291900,1757751049906,-480.0,0.00024657,3]
[385291901,1757751049915,-480.0,0.00024657,3]
[385291902,1757751049926,-480.0,0.00024657,3]
[385291903,1757751049936,-151.0,0.00024657,7]
[385291904,1757751049945,-480.0,0.00024657,3]
[385291905,1757751049954,-151.0,0.00024657,7]
[385291906,1757751049963,-151.0,0.00024657,7]
[385291907,1757751049972,-480.0,0.00024657,3]
[385291908,1757751049982,-217.911978,0.00024657,7]
[385291909,1757751049991,-480.0,0.00024657,3]
[385291910,1757751050000,-480.0,0.00024657,3]
[385291911,1757751050009,-480.0,0.00024657,3]
[385291912,1757751050019,-480.0,0.00024657,3]
[385291913,1757751050029,-480.0,0.00024657,3]
[385291914,1757751050038,-500.0,0.00024657,3]
[385291915,1757751050047,-872.91,0.00024657,3]
[385291916,1757751050057,-480.0,0.00024657,3]
[385291917,1757751050066,-12401.85,0.00024657,3]
[385291918,1757751050076,-480.43932342,0.00024657,3]
[385291919,1757751050086,-480.0,0.00024657,3]
[385291920,1757751050098,-480.0,0.00024657,3]
[385291921,1757751050108,-480.0,0.00024657,3]
[385291922,1757751050117,-481.96179591,0.00024657,3]
[385291923,1757751050127,-480.0,0.00024657,3]
[385291924,1757751050141,-151.0,0.00024657,7]
[385291925,1757751050150,-480.0,0.00024657,3]
[385291926,1757751050159,-480.0,0.00024657,3]
[385291927,1757751050170,-480.0,0.00024657,3]
[385291928,1757751050180,-374.07598806,0.00024657,3]
[385291929,1757751050189,-480.0,0.00024657,3]
[385291930,1757751050199,-646.83,0.00024657,3]
[385291931,1757751050213,-480.0,0.00024657,3]
[385291932,1757751050223,-480.0,0.00024657,3]
[385291933,1757751050232,-480.0,0.00024657,3]
[385291934,1757751050241,-1000.0,0.00024657,3]
[385291935,1757751050251,-483.51658898,0.00024657,3]
[385291936,1757751050260,-151.0,0.00024657,7]
[385291937,1757751050270,-151.0,0.00024657,7]
[385291938,1757751050279,-480.0,0.00024657,3]
[385291939,1757751050289,-480.0,0.00024657,3]
[385291940,1757751050299,-151.0,0.00024657,7]
[385291941,1757751050308,-151.0,0.00024657,7]
[385291942,1757751050317,-151.0,0.00024657,7]
[385291943,1757751050327,-480.0,0.00024657,3]
[385291944,1757751050336,-151.0,0.00024657,7]
[385291945,1757751050345,-151.0,0.00024657,7]
[385291946,1757751050355,-480.0,0.00024657,3]
[385291947,1757751050364,-480.27688658,0.00024657,3]
[385291948,1757751050374,-151.0,0.00024657,7]
[385291949,1757751050383,-480.0,0.00024657,3]
[385291950,1757751050393,-151.0,0.00024657,7]
[385291951,1757751050403,-151.0,0.00024657,7]
[385291952,1757751050412,-213.760756,0.00024657,7]
[385291953,1757751050421,-480.0,0.00024657,3]
[385291954,1757751050431,-151.0,0.00024657,7]
[385291955,1757751050440,-152.841384,0.00024657,7]
[385291956,1757751050450,-480.0,0.00024657,3]
[385291957,1757751050459,-480.0,0.00024657,3]
[385291958,1757751050468,-710.97,0.00024657,3]
[385291959,1757751050477,-480.0,0.00024657,3]
[385291960,1757751050487,-480.0,0.00024657,3]
[385291961,1757751050496,-480.0,0.00024657,3]
[385291962,1757751050505,-503.01,0.00024657,3]
[385291963,1757751050515,-480.0,0.00024657,3]
[385291964,1757751050524,-480.0,0.00024657,3]
[385291965,1757751050534,-480.0,0.00024657,3]
[385291966,1757751050543,-745.32,0.00024657,3]
[385291967,1757751050553,-480.0,0.00024657,3]
[385291968,1757751050562,-480.0,0.00024657,3]
[385291969,1757751050572,-480.0,0.00024657,3]
[385291970,1757751050581,-500.0,0.00024657,3]
[385291971,1757751050590,-480.0,0.00024657,3]
[385291972,1757751050600,-500.0,0.00024657,3]
[385291973,1757751050609,-500.0,0.00024657,3]
[385291974,1757751050618,-316.50616148,0.00024657,3]
[385291975,1757751050627,-480.0,0.00024657,3]
[385291976,1757751050636,-480.0,0.00024657,3]
[385291977,1757751050646,-480.0,0.00024657,3]
[385291978,1757751050655,-480.0,0.00024657,3]
[385291979,1757751050664,-480.0,0.00024657,3]
[385291980,1757751050673,-480.0,0.00024657,3]
[385291981,1757751050682,-480.0,0.00024657,3]
[385291982,1757751050692,-480.0,0.00024657,3]
[385291983,1757751050703,-480.0,0.00024657,3]
[385291984,1757751050712,-557.64,0.00024657,3]
[385291985,1757751050721,-348.486043,0.00024657,7]
[385291986,1757751050730,-348.486043,0.00024657,7]
[385291987,1757751050740,-348.486043,0.00024657,7]
[385291988,1757751050749,-348.486043,0.00024657,7]
[385291989,1757751050758,-480.0,0.00024657,3]
[385291990,1757751050767,-348.486043,0.00024657,7]
[385291991,1757751050777,-348.486043,0.00024657,7]
[385291992,1757751050786,-348.486043,0.00024657,7]
[385291993,1757751050796,-348.486043,0.00024657,7]
[385291994,1757751050805,-901.91,0.00024657,3]
[385291995,1757751050815,-480.0,0.00024657,3]
[385291996,1757751050824,-348.486043,0.00024657,7]
[385291997,1757751050833,-348.486043,0.00024657,7]
[385291998,1757751050843,-480.0,0.00024657,3]
[385291999,1757751050852,-348.486043,0.00024657,7]
[385292000,1757751050863,-480.0,0.00024657,3]
[385292001,1757751050872,-348.486043,0.00024657,7]
[385292002,1757751050882,-348.486043,0.00024657,7]
[385292003,1757751050891,-348.486043,0.00024657,7]
[385292004,1757751050901,-348.486043,0.00024657,7]
[385292005,1757751050910,-6854.71,0.00024657,3]
[385292006,1757751050920,-348.486043,0.00024657,7]
[385292007,1757751050929,-348.486043,0.00024657,7]
[385292008,1757751050939,-348.486043,0.00024657,7]
[385292009,1757751050948,-1151.34,0.00024657,3]
[385292010,1757751050958,-348.486043,0.00024657,7]
[385292011,1757751050967,-348.486046,0.00024657,7]
[385292012,1757751050977,-480.0,0.00024657,3]
[385292013,1757751050987,-480.0,0.00024657,3]
[385292014,1757751050996,-480.0,0.00024657,3]
[385292015,1757751051006,-480.0,0.00024657,3]
[385292016,1757751051015,-480.0,0.00024657,3]
[385292017,1757751051026,-480.0,0.00024657,3]
[385292018,1757751051035,-480.0,0.00024657,3]
[385292019,1757751051046,-480.0,0.00024657,3]
[385292020,1757751051055,-480.0,0.00024657,3]
[385292021,1757751051066,-480.0,0.00024657,3]
[385292022,1757751051075,-776.47,0.00024657,3]
[385292023,1757751051088,-500.0,0.00024657,3]
[385292024,1757751051100,-500.0,0.00024657,3]
[385292025,1757751051110,-480.0,0.00024657,3]
[385292026,1757751051119,-500.0,0.00024657,3]
[385292027,1757751051129,-500.0,0.00024657,3]
[385292028,1757751051140,-508.05776691,0.00024657,3]
[385292029,1757751051149,-480.0,0.00024657,3]
[385292030,1757751051159,-481.52702128,0.00024657,3]
[385292031,1757751051169,-480.0,0.00024657,3]
[385292032,1757751051180,-847.12775373,0.00024657,3]
[385292033,1757751051189,-576.02,0.00024657,3]
[385292034,1757751051198,-847.12775373,0.00024657,7]
[385292035,1757751051210,-576.02,0.00024657,3]
[385292036,1757751051222,-480.0,0.00024657,3]
[385292037,1757751051232,-1969.83,0.00024657,3]
[385292038,1757751051241,-576.02,0.00024657,3]
[385292039,1757751051251,-576.02,0.00024657,3]
[385292040,1757751051260,-576.02,0.00024657,3]
[385292041,1757751051269,-576.02,0.00024657,3]
[385292042,1757751051279,-576.02,0.00024657,3]
[385292043,1757751051288,-480.0,0.00024657,3]
[385292044,1757751051297,-576.02,0.00024657,3]
[385292045,1757751051306,-576.02,0.00024657,3]
[385292046,1757751051316,-576.02,0.00024657,3]
[385292047,1757751051325,-576.02,0.00024657,3]
[385292048,1757751051334,-576.02,0.00024657,3]
[385292049,1757751051343,-576.02,0.00024657,3]
[385292050,1757751051352,-576.02,0.00024657,3]
[385292051,1757751051362,-576.02,0.00024657,3]
[385292052,1757751051371,-576.02,0.00024657,3]
[385292053,1757751051379,-576.02,0.00024657,3]
[385292054,1757751051389,-576.02,0.00024657,3]
[385292055,1757751051398,-576.02,0.00024657,3]
[385292056,1757751051407,-576.02,0.00024657,3]
[385292057,1757751051416,-576.02,0.00024657,3]
[385292058,1757751051425,-576.02,0.00024657,3]
[385292059,1757751051440,-480.0,0.00024657,3]
[385292060,1757751051455,-576.02,0.00024657,3]
[385292061,1757751051464,-480.0,0.00024657,3]
[385292062,1757751051473,-480.0,0.00024657,3]
[385292063,1757751051582,-1453.78,0.00024657,3]
[385292064,1757751051591,-480.0,0.00024657,3]
[385292065,1757751051600,-480.0,0.00024657,3]
[385292066,1757751051609,-1364.13,0.00024657,3]
[385292067,1757751051619,-508.81,0.00024657,3]
[385292068,1757751051835,-480.0,0.00024657,3]
[385292069,1757751051845,-1000.0,0.00024657,2]
[385292070,1757751051855,-480.0,0.00024657,3]
[385292071,1757751051864,-1000.0,0.00024657,2]
[385292072,1757751051873,-151.0,0.00024657,7]
[385292073,1757751051882,-576.21099432,0.00024657,3]
[385292074,1757751051891,-1584.68,0.00024657,3]
[385292075,1757751051901,-359.464904,0.00024657,2]
[385292076,1757751051910,-480.0,0.00024657,3]
[385292077,1757751051919,-480.0,0.00024657,3]
[385292078,1757751051928,-480.0,0.00024657,3]
[385292079,1757751051937,-480.0,0.00024657,3]
[385292080,1757751051947,-480.0,0.00024657,3]
[385292081,1757751051956,-151.0,0.00024657,7]
[385292082,1757751051965,-151.0,0.00024657,7]
[385292083,1757751051974,-151.0,0.00024657,7]
[385292084,1757751051983,-151.0,0.00024657,7]
[385292085,1757751051992,-151.0,0.00024657,7]
[385292086,1757751052001,-633.08,0.00024657,3]
[385292087,1757751052010,-151.0,0.00024657,7]
[385292088,1757751052019,-151.0,0.00024657,7]
[385292089,1757751052029,-151.0,0.00024657,7]
[385292090,1757751052038,-481.92358541,0.00024657,3]
[385292091,1757751052048,-151.0,0.00024657,7]
[385292092,1757751052056,-151.0,0.00024657,7]
[385292093,1757751052066,-151.0,0.00024657,7]
[385292094,1757751052075,-480.0,0.00024657,3]
[385292095,1757751052085,-151.0,0.00024657,7]
[385292096,1757751052097,-5008.75,0.00024657,3]
[385292097,1757751052106,-623.38,0.00024657,3]
[385292098,1757751052115,-480.0,0.00024657,3]
[385292099,1757751052124,-151.0,0.00024657,7]
[385292100,1757751052134,-151.0,0.00024657,7]
[385292101,1757751052143,-686.73,0.00024657,3]
[385292102,1757751052153,-480.0,0.00024657,3]
[385292103,1757751052163,-151.0,0.00024657,7]
[385292104,1757751052173,-151.0,0.00024657,7]
[385292105,1757751052183,-480.0,0.00024657,3]
[385292106,1757751052193,-151.0,0.00024657,7]
[385292107,1757751052202,-151.0,0.00024657,7]
[385292108,1757751052211,-225.6112,0.00024657,7]
[385292109,1757751052220,-1000.19997361,0.00024657,3]
[385292110,1757751052229,-480.0,0.00024657,3]
[385292111,1757751052239,-480.0,0.00024657,3]
[385292112,1757751052247,-480.0,0.00024657,3]
[385292113,1757751052257,-480.0,0.00024657,3]
[385292114,1757751052266,-485.3041856,0.00024657,3]
[385292115,1757751052275,-480.0,0.00024657,3]
[385292116,1757751052284,-495.33,0.00024657,3]
[385292117,1757751052293,-480.0,0.00024657,3]
[385292118,1757751052303,-284.537138,0.00024657,7]
[385292119,1757751052312,-284.537138,0.00024657,7]
[385292120,1757751052322,-480.0,0.00024657,3]
[385292121,1757751052331,-480.0,0.00024657,3]
[385292122,1757751052340,-284.537138,0.00024657,7]
[385292123,1757751052349,-284.537138,0.00024657,7]
[385292124,1757751052358,-284.537138,0.00024657,7]
[385292125,1757751052367,-480.0,0.00024657,2]
[385292126,1757751052377,-284.537138,0.00024657,7]
[385292127,1757751052386,-284.537138,0.00024657,7]
[385292128,1757751052395,-284.537138,0.00024657,7]
[385292129,1757751052404,-284.537138,0.00024657,7]
[385292130,1757751052413,-284.537138,0.00024657,7]
[385292131,1757751052423,-284.537138,0.00024657,7]
[385292132,1757751052433,-284.537138,0.00024657,7]
[385292133,1757751052442,-284.537138,0.00024657,7]
[385292134,1757751052451,-480.0,0.00024657,3]
[385292135,1757751052460,-284.537138,0.00024657,7]
[385292136,1757751052470,-480.0,0.00024657,3]
[385292137,1757751052479,-480.0,0.00024657,3]
[385292138,1757751052488,-284.537138,0.00024657,7]
[385292139,1757751052497,-284.537138,0.00024657,7]
[385292140,1757751052506,-284.537138,0.00024657,7]
[385292141,1757751052515,-284.537138,0.00024657,7]
[385292142,1757751052524,-284.537138,0.00024657,7]
[385292143,1757751052534,-284.537143,0.00024657,7]
[385292144,1757751052543,-482.92279934,0.00024657,3]
[385292145,1757751052552,-165.97124517,0.00024657,3]
[385292146,1757751052561,-160.0,0.00024657,2]
[385292147,1757751052570,-157.0,0.00024658,2]
[385292148,1757751052579,-500.0,0.00024673,2]
[385292149,1757751052588,-500.0,0.00024673,2]
[385292150,1757751052598,-502.63720479,0.00024673,2]
[385292151,1757751052607,-500.0,0.00024673,2]
[385292152,1757751052616,-2528.50619299,0.00024694,2]
[385292153,1757751052626,-741.13,0.000247,7]
[385292154,1757751052635,-2396.82,0.000247,7]
[385292155,1757751052644,-27742.17,0.000247,7]
[385292156,1757751052653,-2018.32,0.00024741,3]
[385292157,1757751052663,-2018.32,0.00024741,3]
[385292158,1757751052672,-2018.32,0.00024741,3]
[385292159,1757751052681,-2018.32,0.00024741,3]
[385292160,1757751052690,-2018.47724021,0.00024741,3]
[385292161,1757751052700,-2242.57035187,0.00024763,2]
[385292162,1757751053099,-285.93584112,0.00024763,2]
[385292163,1757751053108,-776.00709749,0.00024831,2]
[385292164,1757751053118,-1438.05706139,0.00024831,2]
[385292165,1757751053131,-1090.4491316,0.00024831,2]
[385292166,1757751053141,-4659.5508684,0.00024831,2]
[385292167,1757751053153,-688.85120891,0.00024831,2]
[385292168,1757751053166,-472.95933375,0.00024831,2]
[385292170,1757751421633,317.23,0.00029287,60]
[385292178,1757752188041,500.0,0.0002929,60]
[385292216,1757752232197,-429.06873695,0.00019701,14]
[385292218,1757752232209,-4570.93126305,0.00019701,14]
[385292220,1757752232225,-3344.4075627,0.000199,2]
[385292221,1757752232235,-555.86427778,0.00020281,2]
[385292223,1757752232243,-300.0,0.00021147,2]
[385292225,1757752232253,-300.0,0.00021147,2]
[385292227,1757752232262,-3344.40756268,0.00021149,2]
[385292229,1757752232271,-3344.40756268,0.00022398,2]
[385292230,1757752232280,-238.5919617,0.00023046,2]
[385292231,1757752232290,-3344.40756268,0.00023647,2]
[385292233,1757752232299,-522.16846198,0.00024086,2]
[385292235,1757752232307,-27883.30661675,0.00024457,2]
[385292237,1757752232323,-45344.5871173,0.00024457,2]
[385292239,1757752232334,-1501.0,0.00024457,2]
[385292420,1757752234143,500.0,0.00024,30]
[385292728,1757752237915,-268.61921822,0.00024456,2]
[385292729,1757752237926,-103.32221466,0.00024456,2]
[385292730,1757752237935,-182.4281126,0.00024456,2]
[385292731,1757752237945,-500.0,0.00024456,2]
[385292732,1757752237959,-500.0,0.00024456,2]
[385292733,1757752237969,-500.0,0.00024456,2]
[385292734,1757752237978,-500.0,0.00024456,2]
[385292735,1757752237989,-500.0,0.00024456,2]
[385292736,1757752237999,-539.56228516,0.00024456,2]
[385292737,1757752238009,-500.0,0.00024456,2]
[385292738,1757752238019,-213.98440886,0.00024456,2]
[385292739,1757752238028,-500.0,0.00024456,2]
[385292740,1757752238038,-500.0,0.00024456,2]
[385292741,1757752238048,-500.0,0.00024456,2]
[385292742,1757752238057,-449.8145676,0.00024456,2]
[385292748,1757752240018,-50.1854324,0.00024456,2]
[385292749,1757752240028,-500.0,0.00024456,2]
[385292750,1757752240038,-494.94297055,0.00024456,2]
[385292751,1757752240047,-410.24686184,0.00024456,2]
[385292752,1757752240057,-388.33245524,0.00024456,2]
[385292753,1757752240067,-500.0,0.00024456,2]
[385292754,1757752240076,-500.0,0.00024456,2]
[385292755,1757752240085,-500.0,0.00024456,2]
[385292756,1757752240095,-500.0,0.00024456,2]
[385292757,1757752240104,-5783.42659997,0.00024457,2]
[385292781,1757752243702,-3102.653632,0.00024457,2]
[385293023,1757752246181,-6461.76840583,0.00024457,2]
[385293030,1757752246236,-502.0,0.00024457,2]
[385293032,1757752246248,-315.62062087,0.00024457,2]
[385293034,1757752246258,-42417.95110596,0.00024457,2]
[385293397,1757753432353,-470.21261488,0.00019701,14]
[385293432,1757753438144,-4529.78738512,0.00019701,14]
[385293433,1757753438154,-3074.87816308,0.000199,2]
[385293434,1757753438164,-657.81199604,0.00021149,2]
[385293435,1757753438249,-434.60648948,0.00021149,2]
[385293436,1757753438262,-531.25030927,0.00021149,2]
[385293682,1757753445632,-923.51340604,0.00021149,2]
[385293689,1757753445687,-476.48659396,0.00021149,2]
[385295839,1757753564237,-237.1735404,0.000199,2]
[385295840,1757753564260,-2462.8264596,0.000199,2]
[385295842,1757753774307,688.0,0.00027,120]
[385295844,1757753885276,2697.79876125,0.0001552,14]
[385295846,1757754377863,1000.0,0.00027,120]
[385295862,1757754603198,366.8897638,0.00027397,120]
[385295864,1757754622688,356.33651,0.00027,120]
[385295866,1757754629439,151.0,0.00024,120]
[385295867,1757754630830,151.0,0.000256,120]
[385295907,1757754632519,151.0,0.000271,120]
[385295908,1757754635047,317.58638,0.00027,120]
[385295909,1757754638003,-4983.39733817,0.00019309,14]
[385295911,1757754638013,-311.0,0.00019899,2]
[385295913,1757754638023,-3134.37648197,0.000199,2]
[385295916,1757754638033,-300.0,0.00021141,2]
[385295917,1757754638043,-300.0,0.00021141,2]
[385295918,1757754638053,-300.0,0.00021141,2]
[385295919,1757754638062,-300.0,0.00021141,2]
[385295920,1757754638071,-1200.0,0.00021142,2]
[385295921,1757754638081,-3134.37648176,0.00021149,2]
[385295922,1757754638091,-471.37095331,0.00021465,2]
[385295923,1757754638100,-233.76187719,0.00021565,2]
[385295924,1757754638110,-300.0,0.00021565,20]
[385295925,1757754638119,-300.0,0.00021565,20]
[385295926,1757754638130,-182.48147344,0.00021852,2]
[385295927,1757754638139,-5891.15404205,0.00021852,2]
[385295928,1757754638151,-1138.80134258,0.00021852,2]
[385295929,1757754638161,-2201.13980346,0.00021852,2]
[385295945,1757754638434,-12317.29981874,0.00021852,2]
[385295947,1757754638446,-28451.60499317,0.00021852,2]
[385295948,1757754638456,-1447.59888784,0.00022398,2]
[385295951,1757754638539,-266.8,0.00022398,2]
[385295952,1757754638550,-1401.21430455,0.00022398,2]
[385296134,1757754640594,-18.76328937,0.00022398,2]
[385296136,1757754640604,-471.37095328,0.00022571,2]
[385296164,1757754640763,-2264.10087164,0.00023444,2]
[385296166,1757754640773,-161.3441542,0.00023452,2]
[385296168,1757754640783,-266.18302929,0.00023499,2]
[385296170,1757754640795,-359.99275684,0.00023499,2]
[385296173,1757754640815,-1721.69681776,0.00023499,2]
[385296176,1757754640827,-2434.74389024,0.00023554,2]
[385296178,1757754640836,-2524.82941417,0.00023609,2]
[385296179,1757754640846,-3134.37648176,0.00023647,2]
[385296180,1757754640855,-1014.99062532,0.00023664,2]
[385296182,1757754640866,-471.37095328,0.00023678,2]
[385296184,1757754640877,-500.0,0.00023856,2]
[385296186,1757754640886,-500.0,0.0002387,2]
[385296188,1757754640895,-500.35895265,0.00023886,2]
[385296189,1757754640905,-304.0826596,0.00023912,2]
[385296191,1757754640914,-5776.94982453,0.00023912,2]
[385296268,1757754643858,-83.12859323,0.00023912,2]
[385296270,1757754643867,-151.0,0.00023922,2]
[385296272,1757754643877,-151.0,0.00023922,2]
[385296274,1757754643887,-500.0,0.00023922,2]
[385296276,1757754643907,-250.0,0.00023922,2]
[385296278,1757754643925,-260.5317625,0.00023922,2]
[385296280,1757754643934,-500.0,0.00023922,2]
[385296282,1757754643943,-500.0,0.00023922,2]
[385296284,1757754643953,-500.0,0.00023922,2]
[385296286,1757754643962,-46.96771892,0.00023922,2]
[385296289,1757754643982,-453.03228108,0.00023922,2]
[385296291,1757754643991,-250.0,0.00023922,2]
[385296293,1757754644007,-250.0,0.00023922,2]
[385296295,1757754644016,-250.0,0.00023922,2]
[385296297,1757754644027,-250.0,0.00023922,2]
[385296299,1757754644037,-250.0,0.00023922,2]
[385296301,1757754644046,-250.0,0.00023922,2]
[385296303,1757754644055,-258.64409182,0.00023922,2]
[385296305,1757754644064,-489.78332314,0.00023922,2]
[385296307,1757754644074,-619.86,0.00023926,3]
[385296309,1757754644083,-500.0,0.00023935,2]
[385296311,1757754644092,-212.24965132,0.00023935,2]
[385296313,1757754644102,-500.0,0.00023935,2]
[385296315,1757754644111,-500.0,0.00023935,2]
[385296317,1757754644120,-285.92180384,0.00023935,2]
[385296319,1757754644129,-885.60627112,0.00023936,2]
[385296559,1757754646637,-6725.51065213,0.00023936,2]
[385296565,1757754646694,-10516.684434,0.00023936,2]
[385296577,1757754646798,-3058.91318437,0.00023936,2]
[385296687,1757754647852,294.0,0.00023993,120]
[385296735,1757754648309,294.0,0.00023983,120]
[385296775,1757754648680,526.0,0.00023993,120]
[385296788,1757754648792,294.0,0.00023973,120]
[385296828,1757754649171,526.0,0.00023983,120]
[385296838,1757754649253,294.0,0.00025211,120]
[385296858,1757754649643,526.0,0.00023973,120]
[385296866,1757754649712,294.0,0.00025201,120]
[385296914,1757754650173,294.0,0.00025191,120]
[385296918,1757754650205,526.0,0.00025211,120]
[385296963,1757754650619,294.0,0.0002709,120]
[385296967,1757754650653,526.0,0.00025201,120]
[385297010,1757754651068,294.0,0.0002708,120]
[385297015,1757754651101,526.0,0.00025191,120]
[385297063,1757754651561,526.0,0.0002709,120]
[385297102,1757754651999,526.0,0.0002708,120]
[385297215,1757754725346,300.0,0.00027397,120]
[385297219,1757755009252,150.5,0.00023776,120]
[385297220,1757755009816,150.5,0.00023766,120]
[385297221,1757755010267,289.22,0.00023756,120]
[385297222,1757755035820,300.0,0.00027397,120]
[385297223,1757755162197,220.396228,0.00027397,120]
[385297226,1757755344172,300.0,0.00027397,120]
[385297227,1757755369770,150.5,0.00023776,120]
[385297228,1757755370205,150.5,0.00023766,120]
[385297229,1757755370703,150.5,0.00023756,120]
[385297230,1757755371162,150.5,0.00025463,120]
[385297231,1757755371747,150.5,0.00025453,120]
[385297232,1757755372136,300.92,0.00025443,120]
[385297233,1757755478956,1000.0,0.00024,30]
[385297234,1757755506517,500.0,0.00029316,60]
[385297248,1757755713371,300.0,0.00029316,120]
[385297255,1757755718232,495.56813624,0.00029316,120]
[385297256,1757755721665,285.24371364,0.00029316,60]